lending/lending_fUSD_20250122
["ID","MTS","AMOUNT","RATE_DAILY","PERIOD"]
[349931658,1737515440054,-500.0,0.00021943,2]
[349931659,1737515440063,-500.0,0.00021943,2]
[349931660,1737515440074,-500.0,0.00021943,2]
[349931661,1737515440084,-500.0,0.00021943,2]
[349931662,1737515440094,-500.0,0.00021943,2]
[349931663,1737515440103,-500.0,0.00021943,2]
[349931664,1737515440113,-500.0,0.00021943,2]
[349931665,1737515440123,-500.0,0.00021943,2]
[349931666,1737515440132,-500.0,0.00021943,2]
[349931667,1737515440142,-507.5460828,0.00021943,2]
[349931668,1737515440152,-500.0,0.00021943,2]
[349931669,1737515440162,-571.01684738,0.00021943,2]
[349931670,1737515440172,-500.0,0.00021943,2]
[349931671,1737515440182,-500.0,0.00021943,2]
[349931672,1737515440192,-516.24506315,0.00021943,2]
[349931673,1737515440201,-500.0,0.00021943,2]
[349931674,1737515440211,-500.0,0.00021943,2]
[349931675,1737515440222,-500.0,0.00021943,2]
[349931676,1737515440231,-500.0,0.00021943,2]
[349931677,1737515440242,-309.39,0.00021943,2]
[349931678,1737515440251,-525.13732564,0.00021943,2]
[349931679,1737515440262,-503.40268397,0.00021943,2]
[349931680,1737515440272,-500.0,0.00021943,2]
[349931681,1737515440281,-500.0,0.00021943,2]
[349931682,1737515440291,-500.0,0.00021943,2]
[349931683,1737515440301,-500.0,0.00021943,2]
[349931684,1737515440310,-500.0,0.00021943,2]
[349931685,1737515440319,-500.0,0.00021943,2]
[349931686,1737515440329,-500.0,0.00021943,2]
[349931687,1737515440338,-500.0,0.00021943,2]
[349931688,1737515440347,-500.0,0.00021943,2]
[349931689,1737515440357,-500.0,0.00021943,2]
[349931690,1737515440372,-660.89,0.00021943,2]
[349931691,1737515440381,-500.0,0.00021943,2]
[349931692,1737515440394,-150.0,0.00021973,4]
[349931693,1737515440403,-150.0,0.00021973,4]
[349931694,1737515440412,-150.0,0.00021973,4]
[349931695,1737515440422,-294.81766064,0.00021973,2]
[349931696,1737515440432,-2596.219984,0.00021985,2]
[349931697,1737515440442,-2421.613569,0.00021985,2]
[349931698,1737515440451,-2247.0071539,0.00021985,2]
[349931699,1737515440461,-2072.4007389,0.00021985,2]
[349931700,1737515440471,-1897.7943238,0.00021985,2]
[349931701,1737515440480,-5283.970161,0.00021985,2]
[349931702,1737515440537,-4928.601551,0.00021985,2]
[349931703,1737515440548,-4573.232941,0.00021985,2]
[349931704,1737515440572,-4217.864331,0.00021985,2]
[349931705,1737515440583,-3862.495721,0.00021985,2]
[349931706,1737515440593,-500.0,0.00021989,2]
[349931707,1737515440603,-709.71,0.00021989,2]
[349931708,1737515440612,-2033.26,0.00021989,2]
[349931709,1737515440622,-887.46,0.00021989,2]
[349931710,1737515440631,-1255.558839,0.00021989,2]
[349931711,1737515440640,-2359.98,0.00021989,2]
[349931712,1737515440650,-752.81,0.00021989,2]
[349931713,1737515440659,-500.0,0.00021989,2]
[349931714,1737515440668,-846.12,0.00021989,2]
[349931715,1737515440677,-500.0,0.00021989,2]
[349931716,1737515440687,-1962.47,0.00021989,2]
[349931717,1737515440697,-1199.321366,0.00021989,2]
[349931718,1737515440708,-1275.62,0.00021989,2]
[349931719,1737515440721,-500.0,0.00021989,2]
[349931720,1737515440730,-1113.74,0.00021989,2]
[349931721,1737515440739,-952.6,0.00021989,2]
[349931722,1737515440749,-2745.23,0.00021989,2]
[349931723,1737515440759,-734.7,0.00021989,2]
[349931724,1737515440769,-500.0,0.00021989,2]
[349931725,1737515440778,-944.56,0.00021989,2]
[349931726,1737515440787,-945.39,0.00021989,2]
[349931727,1737515440797,-563.05,0.00021989,2]
[349931728,1737515440806,-1364.15,0.00021989,2]
[349931729,1737515440816,-500.0,0.00021989,2]
[349931730,1737515440827,-2777.32,0.00021989,2]
[349931731,1737515440836,-500.0,0.00021989,2]
[349931732,1737515440846,-985.27,0.00021989,2]
[349931733,1737515440855,-1054.98,0.00021989,2]
[349931734,1737515440865,-1024.76,0.00021989,2]
[349931735,1737515440875,-874.49,0.00021989,2]
[349931737,1737515440885,-693.2,0.00021989,2]
[349931739,1737515440894,-643.72,0.00021989,2]
[349931740,1737515440904,-1676.35,0.00021989,2]
[349931742,1737515440914,-1841.95,0.00021989,2]
[349931744,1737515440924,-2714.84,0.00021989,2]
[349931746,1737515440934,-1185.54,0.00021989,2]
[349931748,1737515440943,-3342.25,0.00021989,2]
[349931749,1737515440953,-500.0,0.00021989,2]
[349931750,1737515440963,-1801.52,0.00021989,2]
[349931751,1737515440973,-1150.85,0.00021989,2]
[349931752,1737515440982,-2321.57,0.00021989,2]
[349931753,1737515440992,-877.97,0.00021989,2]
[349931754,1737515441003,-2519.27,0.00021989,2]
[349931755,1737515441015,-3290.21,0.00021989,2]
[349931756,1737515441025,-629.16,0.00021989,2]
[349931757,1737515441035,-1289.45,0.00021989,2]
[349931758,1737515441044,-500.0,0.00021989,2]
[349931759,1737515441054,-912.93,0.00021989,2]
[349931760,1737515441064,-1191.48,0.00021989,2]
[349931761,1737515441073,-4346.8,0.00021989,2]
[349931762,1737515441082,-1209.88,0.00021989,2]
[349931763,1737515441092,-500.0,0.00021989,2]
[349931764,1737515441101,-741.9,0.00021989,2]
[349931765,1737515441110,-1634.29,0.00021989,2]
[349931766,1737515441120,-637.43,0.0002199,2]
[349931767,1737515441130,-500.0,0.0002199,2]
[349931768,1737515441139,-527.41247381,0.0002199,2]
[349931769,1737515441149,-631.74,0.0002199,2]
[349931770,1737515441158,-506.02107734,0.0002199,2]
[349931771,1737515441167,-500.0,0.0002199,2]
[349931772,1737515441177,-500.0,0.0002199,2]
[349931773,1737515441186,-1253.87,0.0002199,2]
[349931774,1737515441196,-65490.38630845,0.0002199,2]
[349931775,1737515441436,-568.8,0.00021715,2]
[349931776,1737515441447,-1936.5,0.00021716,2]
[349931777,1737515441456,-8028.31196256,0.0002199,2]
[349931778,1737515441471,-6834.64085429,0.0002199,2]
[349931779,1737515441482,-2614.97457783,0.0002199,2]
[349931780,1737515441493,-3653.74999986,0.0002199,2]
[349931781,1737515441506,-3592.79863,0.0002199,2]
[349931782,1737515441517,-3590.61534836,0.0002199,2]
[349931783,1737515441541,-355.79999989,0.0002199,2]
[349931784,1737515441552,-421.3557999,0.0002199,2]
[349931785,1737515441563,-409.8822205,0.0002199,2]
[349931786,1737515441575,-278.06409137,0.0002199,2]
[349931787,1737515441586,-8422.23952326,0.0002199,2]
[349931788,1737515441605,-568.8,0.00021989,2]
[349931789,1737515441614,-1616.73507333,0.0002199,2]
[349931790,1737515441625,-1151.55012815,0.0002199,2]
[349931791,1737515441636,-256.7011023,0.0002199,2]
[349931792,1737515442223,-12625.90745695,0.0002199,2]
[349931793,1737515442235,-1016.4582106,0.0002199,2]
[349931794,1737515442247,-500.0,0.0002199,2]
[349931795,1737515442259,-500.0,0.0002199,2]
[349931796,1737515442270,-544.32727247,0.0002199,2]
[349931797,1737515442282,-433.07022453,0.0002199,2]
[349931798,1737515442297,-274.50242182,0.0002199,2]
[349931799,1737515442309,-8166.4980731,0.0002199,2]
[349931800,1737515442321,-1007.19,0.0002199,2]
[349931801,1737515442332,-500.0,0.0002199,2]
[349931802,1737515442342,-500.0,0.0002199,2]
[349931803,1737515442352,-500.0,0.0002199,2]
[349931804,1737515442363,-500.0,0.0002199,2]
[349931805,1737515442379,-500.0,0.0002199,2]
[349931806,1737515442388,-500.0,0.0002199,2]
[349931807,1737515442398,-500.0,0.0002199,2]
[349931808,1737515442408,-513.83699682,0.0002199,2]
[349931809,1737515442419,-500.0,0.0002199,2]
[349931810,1737515442430,-646.9,0.0002199,2]
[349931811,1737515442439,-638.18,0.0002199,2]
[349931812,1737515442449,-500.0,0.0002199,2]
[349931813,1737515442459,-500.0,0.0002199,2]
[349931814,1737515442468,-1023.12,0.0002199,2]
[349931815,1737515442478,-500.0,0.0002199,2]
[349931816,1737515442488,-500.0,0.0002199,2]
[349931817,1737515442498,-509.32674017,0.0002199,2]
[349931818,1737515442508,-500.0,0.0002199,2]
[349931819,1737515442517,-319.70884942,0.0002199,2]
[349931821,1737515442527,-500.0,0.0002199,2]
[349931822,1737515442536,-500.0,0.0002199,2]
[349931823,1737515442545,-500.0,0.0002199,2]
[349931824,1737515442555,-500.0,0.0002199,2]
[349931825,1737515442564,-500.0,0.0002199,2]
[349931826,1737515442573,-500.0,0.0002199,2]
[349931827,1737515442583,-500.0,0.0002199,2]
[349931828,1737515442592,-659.92,0.0002199,2]
[349931829,1737515442604,-500.0,0.0002199,2]
[349931830,1737515442614,-967.98,0.0002199,2]
[349931831,1737515442625,-744.24,0.0002199,2]
[349931832,1737515442636,-500.0,0.0002199,2]
[349931833,1737515442646,-500.0,0.0002199,2]
[349931834,1737515442655,-503.13,0.0002199,2]
[349931835,1737515442665,-500.0,0.0002199,2]
[349931836,1737515442674,-605.4,0.0002199,2]
[349931837,1737515442684,-650.6,0.0002199,2]
[349931838,1737515442693,-433.37099176,0.0002199,2]
[349931839,1737515442703,-500.0,0.0002199,2]
[349931840,1737515442712,-672.8,0.0002199,2]
[349931841,1737515442722,-1452.0,0.0002199,2]
[349931842,1737515442732,-795.97,0.0002199,2]
[349931843,1737515442742,-884.31,0.0002199,2]
[349931844,1737515442752,-773.74,0.0002199,2]
[349931845,1737515442761,-500.0,0.0002199,2]
[349931846,1737515442771,-500.0,0.0002199,2]
[349931847,1737515442780,-500.0,0.0002199,2]
[349931848,1737515442789,-217.29943563,0.0002199,2]
[349931849,1737515442799,-4301.86,0.0002199,2]
[349931850,1737515442808,-500.0,0.0002199,2]
[349931851,1737515442818,-1753.9,0.0002199,2]
[349931852,1737515442828,-500.0,0.0002199,2]
[349931853,1737515442838,-500.0,0.0002199,2]
[349931854,1737515442850,-1494.81,0.0002199,2]
[349931855,1737515442860,-500.0,0.0002199,2]
[349931856,1737515442869,-543.82959321,0.0002199,2]
[349931857,1737515442879,-2771.11,0.0002199,2]
[349931858,1737515442888,-398.10417171,0.0002199,2]
[349931859,1737515442897,-1291.34,0.0002199,2]
[349931860,1737515442907,-2240.34,0.0002199,2]
[349931861,1737515442916,-500.0,0.0002199,2]
[349931862,1737515442926,-1043.64,0.0002199,2]
[349931863,1737515442935,-153.4328273,0.0002199,2]
[349931864,1737515442948,-2694.4225899,0.0002199,2]
[349931870,1737515443154,-370.54727334,0.000219,2]
[349931871,1737515443166,-580.06418616,0.000219,2]
[349931872,1737515443176,-73.6645828,0.0002199,2]
[349931873,1737515443185,-402.87123104,0.0002199,2]
[349931874,1737515443197,-97.12876896,0.0002199,2]
[349931875,1737515443207,-500.0,0.0002199,2]
[349931876,1737515443216,-297.87568178,0.0002199,2]
[349931877,1737515443228,-273.55431822,0.0002199,2]
[349931878,1737515443238,-2358.23,0.0002199,2]
[349931879,1737515443248,-500.0,0.0002199,2]
[349931880,1737515443257,-500.0,0.0002199,2]
[349931881,1737515443267,-523.34,0.0002199,2]
[349931882,1737515443276,-500.0,0.0002199,2]
[349931883,1737515443286,-500.0,0.0002199,2]
[349931884,1737515443295,-1936.5,0.0002199,2]
[349931885,1737515443304,-500.0,0.00021991,2]
[349931886,1737515443314,-500.0,0.00021991,2]
[349931887,1737515443323,-500.0,0.00021991,2]
[349931888,1737515443332,-233.49784882,0.00021991,2]
[349931889,1737515443344,-266.50215118,0.00021991,2]
[349931890,1737515443355,-67.08303606,0.00021991,2]
[349931891,1737515443439,-432.91696394,0.00021991,2]
[349931892,1737515443449,-284.78639575,0.00021991,2]
[349931893,1737515443460,-850.89360425,0.00021991,2]
[349931894,1737515443469,-249.92339575,0.00021991,2]
[349931895,1737515443496,-389.56660425,0.00021991,2]
[349931896,1737515443506,-603.61,0.00021991,2]
[349931897,1737515443516,-408.88186442,0.00021991,2]
[349931898,1737515443528,-91.11813558,0.00021991,2]
[349931899,1737515443539,-673.1,0.00021991,2]
[349931900,1737515443550,-500.0,0.00021991,2]
[349931901,1737515443559,-695.04186446,0.00021995,2]
[349931902,1737515444026,-500.0,0.00021715,2]
[349931903,1737515444036,-500.0,0.00021989,2]
[349931904,1737515444046,-1508.95813554,0.00021995,2]
[349931905,1737515444056,-1027.32186446,0.00021997,2]
[349931906,1737515444235,-2229.35154055,0.00021997,2]
[349931907,1737515444328,-306.72920112,0.00021716,2]
[349931909,1737515446219,-2163.32,0.00021715,2]
[349931910,1737515446231,-500.0,0.00021715,2]
[349931911,1737515446240,-380.05928412,0.00021716,2]
[349931912,1737515446252,-17.46151476,0.00021716,2]
[349931913,1737515446262,-299.40552906,0.00021989,2]
[349931914,1737515446277,-1522.9792,0.00021989,2]
[349931915,1737515446435,-340.93527094,0.00021989,2]
[349931916,1737515446446,-522.35872629,0.00021989,2]
[349931917,1737515446455,-156.53796513,0.0002199,2]
[349931918,1737515446467,-411.304995,0.0002199,2]
[349931919,1737515446488,-136.40703987,0.0002199,2]
[349931920,1737515446498,-8818.70243168,0.00021997,2]
[349931921,1737515446507,-536.97,0.00021999,2]
[349931922,1737515446517,-500.0,0.00021999,2]
[349931923,1737515446528,-434.87881517,0.00021999,2]
[349931924,1737515446537,-999.0,0.00021999,2]
[349931925,1737515446546,-674.0,0.00022,2]
[349931926,1737515446556,-198.9226462,0.00022,2]
[349931927,1737515446565,-211925.45416933,0.00022,2]
[349931928,1737515446575,-6992.59714617,0.00022,2]
[349931929,1737515446585,-1146466.79557092,0.00022,2]
[349931930,1737515446600,-500.0,0.00022,2]
[349931931,1737515475407,151.89,0.00010137,2]
[349931933,1737515531485,198.21,0.00024,120]
[349931936,1737515874372,10000.0,0.00024,120]
[349931937,1737515879958,10000.0,0.00024,120]
[349931938,1737515903259,10000.0,0.00024,120]
[349931939,1737515913028,10000.0,0.00024,120]
[349931940,1737515928946,8781.7,0.00024,120]
[349931941,1737515985180,251.26826788,0.0002,120]
[349931942,1737516110053,163.63,0.00012329,2]
[349931943,1737516308703,464.77,0.00012,2]
[349931944,1737516308731,800.0,0.00012,2]
[349931945,1737516308759,800.0,0.00012,2]
[349931946,1737516308784,800.0,0.00012,2]
[349931947,1737516308811,800.0,0.00012,2]
[349931948,1737516308836,20000.0,0.00012,2]
[349931949,1737516308865,1040888.20926822,0.00012,2]
[349931952,1737516386849,151.08,0.00010137,2]
[349931977,1737516631400,-198.63,0.00016712,2]
[349931979,1737516631410,-57.225,0.00018532,2]
[349931982,1737516631455,-530.245,0.00018532,2]
[349931983,1737516631466,-500.0,0.00019164,2]
[349931984,1737516631475,-500.0,0.00019164,2]
[349931985,1737516631484,-156.485755,0.0001917,2]
[349931986,1737516631493,-3746.72508317,0.0002,14]
[349931987,1737516631505,-2499.96256852,0.0002,14]
[349931988,1737516631516,-732.43863229,0.0002,14]
[349931989,1737516631525,-479.67,0.00020108,2]
[349931990,1737516631535,-6603.20695235,0.00020169,2]
[349931991,1737516631546,-471.13100124,0.00020169,2]
[349931992,1737516631566,-1193.44986151,0.00020169,2]
[349931993,1737516631622,-15622.2121849,0.00020169,2]
[349931994,1737516631631,-1000.0,0.00020194,2]
[349931995,1737516631641,-250.0,0.00020244,2]
[349931996,1737516631651,-250.0,0.00020247,2]
[349931997,1737516631660,-250.0,0.00020286,2]
[349931998,1737516631670,-200.0,0.00020289,2]
[349931999,1737516631679,-417.28,0.00020301,2]
[349932000,1737516631688,-300.0,0.00020323,2]
[349932001,1737516631698,-514.1,0.00020331,2]
[349932002,1737516631707,-466.58,0.00020332,2]
[349932003,1737516631719,-2858.69,0.00020337,2]
[349932004,1737516631730,-1126.06,0.00020365,2]
[349932005,1737516631739,-1101.82,0.00020374,2]
[349932006,1737516631748,-221.97,0.00020397,2]
[349932007,1737516631758,-972.33,0.00020562,2]
[349932008,1737516631767,-325.42,0.00020579,2]
[349932009,1737516631777,-165.72,0.00020593,30]
[349932010,1737516631787,-151.08,0.00020708,2]
[349932011,1737516631800,-555.0,0.00020744,2]
[349932012,1737516631810,-1514.49,0.00020744,2]
[349932013,1737516631819,-271.35,0.00020756,2]
[349932014,1737516631828,-587.47,0.00020796,2]
[349932015,1737516631840,-200.0,0.00020797,2]
[349932017,1737516631849,-3122.45067427,0.000208,2]
[349932019,1737516631858,-1329.93086194,0.00020805,2]
[349932020,1737516631869,-200.0,0.00020809,2]
[349932021,1737516631878,-3122.45067427,0.00020834,2]
[349932022,1737516631887,-200.0,0.00020842,2]
[349932023,1737516631896,-1329.93086194,0.00020844,2]
[349932024,1737516631905,-288.08874518,0.0002085,2]
[349932025,1737516631915,-167.42,0.00020853,2]
[349932026,1737516631924,-7447.76022621,0.00020855,2]
[349932027,1737516631934,-288.08874518,0.0002086,2]
[349932028,1737516631943,-1329.93086194,0.00020864,2]
[349932029,1737516631952,-3122.45067427,0.00020873,2]
[349932031,1737516631962,-1060.91,0.00020873,2]
[349932032,1737516631971,-170.179,0.00020873,2]
[349932034,1737516631980,-200.0,0.00020878,2]
[349932036,1737516631990,-3122.45067427,0.00020879,2]
[349932038,1737516632000,-288.08874518,0.00020883,2]
[349932040,1737516632010,-1329.93086194,0.0002089,2]
[349932042,1737516632020,-3122.45067427,0.00020897,2]
[349932043,1737516632030,-7447.76022621,0.00020903,2]
[349932045,1737516632039,-7447.76022621,0.00020903,2]
[349932047,1737516632049,-288.08874518,0.00020904,2]
[349932049,1737516632058,-7447.76022621,0.00020904,2]
[349932051,1737516632068,-163.0,0.00020908,2]
[349932053,1737516632077,-1329.93086194,0.0002091,2]
[349932055,1737516632086,-175.61,0.00020913,2]
[349932056,1737516632096,-7447.76022621,0.00020935,2]
[349932057,1737516632105,-200.0,0.00020936,2]
[349932058,1737516632114,-288.08874518,0.00020942,2]
[349932059,1737516632123,-773.25,0.00021041,2]
[349932060,1737516632132,-773.25,0.00021041,2]
[349932061,1737516632141,-773.25,0.00021041,2]
[349932062,1737516632151,-770.49,0.00021041,2]
[349932063,1737516632160,-1450.0,0.00021122,2]
[349932064,1737516632169,-500.0,0.00021178,2]
[349932065,1737516632179,-451.14,0.00021178,2]
[349932066,1737516632187,-302.2,0.00021178,2]
[349932067,1737516632196,-301.99,0.00021178,2]
[349932068,1737516632206,-152.23,0.00021178,2]
[349932069,1737516632215,-287.07,0.00021178,2]
[349932070,1737516632225,-437.79,0.00021178,2]
[349932071,1737516632234,-150.0,0.00021178,2]
[349932072,1737516632243,-150.0,0.00021178,2]
[349932073,1737516632252,-437.79,0.00021178,2]
[349932074,1737516632262,-150.0,0.00021178,2]
[349932075,1737516632272,-150.0,0.00021178,2]
[349932076,1737516632282,-437.79,0.00021178,2]
[349932077,1737516632292,-150.0,0.00021178,2]
[349932078,1737516632302,-150.0,0.00021178,2]
[349932079,1737516632311,-150.0,0.00021178,2]
[349932080,1737516632320,-437.79,0.00021178,2]
[349932081,1737516632329,-437.79,0.00021178,2]
[349932082,1737516632339,-150.0,0.00021178,2]
[349932083,1737516632348,-150.0,0.00021178,2]
[349932084,1737516632357,-437.79,0.00021178,2]
[349932085,1737516632367,-1820.0,0.000212,2]
[349932086,1737516632376,-168.14,0.00021239,2]
[349932087,1737516632386,-500.0,0.00021356,2]
[349932088,1737516632396,-500.0,0.00021356,2]
[349932089,1737516632405,-1196.0134295,0.0002156,2]
[349932090,1737516632414,-325.42,0.00021608,2]
[349932091,1737516632423,-6527.954,0.00021615,2]
[349932092,1737516632433,-339.8056,0.00021616,2]
[349932093,1737516632442,-200.4462,0.00021616,2]
[349932094,1737516632451,-189.1,0.00021651,2]
[349932095,1737516632460,-1128.4826,0.00021695,2]
[349932096,1737516632470,-508.77257298,0.00021715,2]
[349932097,1737516632479,-500.0,0.00021715,2]
[349932098,1737516632488,-500.0,0.00021715,2]
[349932099,1737516632497,-540.67,0.00021715,2]
[349932100,1737516632508,-500.0,0.00021715,2]
[349932101,1737516632517,-500.0,0.00021715,2]
[349932102,1737516632526,-500.0,0.00021715,2]
[349932103,1737516632536,-500.0,0.00021715,2]
[349932104,1737516632545,-500.0,0.00021715,2]
[349932105,1737516632554,-500.0,0.00021715,2]
[349932106,1737516632563,-500.0,0.00021715,2]
[349932107,1737516632573,-500.0,0.00021715,2]
[349932108,1737516632582,-564.26,0.00021715,2]
[349932109,1737516632591,-1212.04,0.00021715,2]
[349932110,1737516632600,-500.0,0.00021715,2]
[349932111,1737516632610,-500.13,0.00021715,2]
[349932112,1737516632619,-500.0,0.00021715,2]
[349932113,1737516632629,-999.0,0.00021715,2]
[349932114,1737516632639,-999.0,0.00021715,2]
[349932115,1737516632648,-999.0,0.00021715,2]
[349932116,1737516632657,-999.0,0.00021715,2]
[349932117,1737516632667,-500.0,0.00021715,2]
[349932118,1737516632676,-999.0,0.00021715,2]
[349932119,1737516632685,-999.0,0.00021715,2]
[349932120,1737516632694,-999.0,0.00021715,2]
[349932121,1737516632703,-999.0,0.00021715,2]
[349932122,1737516632712,-999.0,0.00021715,2]
[349932123,1737516632721,-221.17305053,0.00021715,2]
[349932124,1737516632730,-1206.0,0.00021715,2]
[349932125,1737516632739,-792.99,0.00021715,2]
[349932126,1737516632748,-500.0,0.00021715,2]
[349932127,1737516632758,-971.7,0.00021715,2]
[349932128,1737516632767,-945.49,0.00021715,2]
[349932129,1737516632776,-1212.9,0.00021715,2]
[349932130,1737516632786,-784.15,0.00021715,2]
[349932131,1737516632800,-979.68,0.00021715,2]
[349932132,1737516632809,-500.0,0.00021715,2]
[349932133,1737516632818,-1104.92,0.00021715,2]
[349932134,1737516632827,-696.79,0.00021715,2]
[349932135,1737516632837,-500.0,0.00021715,2]
[349932136,1737516632846,-500.0,0.00021715,2]
[349932137,1737516632856,-423.06526336,0.00021715,2]
[349932138,1737516632867,-500.0,0.00021715,2]
[349932139,1737516632878,-974.15,0.00021715,2]
[349932140,1737516632887,-500.0,0.00021715,2]
[349932141,1737516632896,-500.0,0.00021715,2]
[349932142,1737516632906,-500.0,0.00021715,2]
[349932143,1737516632915,-500.0,0.00021715,2]
[349932144,1737516632923,-500.0,0.00021715,2]
[349932145,1737516632934,-500.0,0.00021715,2]
[349932146,1737516632943,-500.0,0.00021715,2]
[349932147,1737516632952,-539.51,0.00021715,2]
[349932148,1737516632962,-500.0,0.00021715,2]
[349932149,1737516632971,-722.13,0.00021715,2]
[349932150,1737516632980,-500.0,0.00021715,2]
[349932151,1737516632989,-500.0,0.00021715,2]
[349932152,1737516632999,-500.0,0.00021715,2]
[349932153,1737516633008,-500.0,0.00021715,2]
[349932154,1737516633018,-500.0,0.00021715,2]
[349932155,1737516633027,-500.0,0.00021715,2]
[349932156,1737516633036,-500.0,0.00021715,2]
[349932157,1737516633045,-500.0,0.00021715,2]
[349932158,1737516633055,-500.0,0.00021715,2]
[349932159,1737516633065,-578.94,0.00021715,2]
[349932160,1737516633075,-1324.28,0.00021715,2]
[349932161,1737516633084,-1074.69,0.00021715,2]
[349932162,1737516633094,-1321.9,0.00021715,2]
[349932163,1737516633103,-1005.67,0.00021715,2]
[349932164,1737516633113,-500.0,0.00021715,2]
[349932165,1737516633123,-500.0,0.00021715,2]
[349932166,1737516633132,-500.0,0.00021715,2]
[349932167,1737516633142,-500.0,0.00021715,2]
[349932168,1737516633151,-161.28990915,0.00021715,2]
[349932169,1737516633161,-500.0,0.00021715,2]
[349932170,1737516633171,-500.0,0.00021715,2]
[349932171,1737516633180,-500.0,0.00021715,2]
[349932172,1737516633190,-500.0,0.00021715,2]
[349932173,1737516633199,-500.0,0.00021715,2]
[349932174,1737516633212,-677.37,0.00021715,2]
[349932175,1737516633221,-500.0,0.00021715,2]
[349932176,1737516633232,-500.0,0.00021715,2]
[349932177,1737516633241,-500.0,0.00021715,2]
[349932178,1737516633254,-500.0,0.00021715,2]
[349932179,1737516633264,-572.81,0.00021715,2]
[349932180,1737516633273,-500.0,0.00021715,2]
[349932181,1737516633284,-887.53,0.00021715,2]
[349932182,1737516633294,-544.0,0.00021715,2]
[349932183,1737516633303,-850.25,0.00021715,2]
[349932184,1737516633314,-500.0,0.00021715,2]
[349932185,1737516633324,-500.0,0.00021716,2]
[349932186,1737516633334,-512.08420586,0.00021716,2]
[349932187,1737516633343,-500.0,0.00021716,2]
[349932188,1737516633353,-500.0,0.00021716,2]
[349932189,1737516633362,-5000.0,0.00021736,2]
[349932190,1737516633372,-1819.22072892,0.00021762,2]
[349932191,1737516633382,-275.978,0.00021795,2]
[349932192,1737516633392,-601.0,0.00021795,2]
[349932193,1737516633401,-2948.0,0.00021795,2]
[349932194,1737516633411,-537.0,0.00021795,2]
[349932195,1737516633420,-1105.0,0.00021795,2]
[349932196,1737516633430,-1270.772,0.00021795,2]
[349932197,1737516633439,-2019.0,0.00021795,2]
[349932198,1737516633448,-151.455,0.00021795,2]
[349932199,1737516633458,-3903.0,0.00021795,2]
[349932200,1737516633467,-1646.91,0.000218,2]
[349932201,1737516633477,-6754.43868094,0.000218,2]
[349932202,1737516633487,-500.0,0.00021824,2]
[349932203,1737516633496,-152.22,0.00021825,2]
[349932204,1737516633505,-500.0,0.00021833,2]
[349932205,1737516633515,-511.11963397,0.00021833,2]
[349932206,1737516633524,-1560.6,0.00021834,2]
[349932207,1737516633533,-876.0,0.00021834,2]
[349932208,1737516633543,-2390.91,0.00021834,2]
[349932209,1737516633552,-500.0,0.00021834,2]
[349932210,1737516633562,-838.11,0.00021834,2]
[349932211,1737516633571,-1302.916458,0.00021834,2]
[349932212,1737516633581,-807.65,0.00021834,2]
[349932213,1737516633591,-160.12917,0.00021834,2]
[349932214,1737516633600,-1231.83,0.00021834,2]
[349932215,1737516633609,-157.726337,0.00021834,2]
[349932216,1737516633619,-500.0,0.00021834,2]